bitfinex-derivatives/quotes_BNBF0:USTF0_20250126
["timestamp","ask_amount","ask_price","bid_price","bid_amount"]
[1737869527992,0.28962001,690.56,689.55,1.08724256]
[1737869530493,0.28962001,690.56,689.56,0.26639334]
[1737869532600,0.28962001,690.56,689.55,1.08724256]
[1737869533000,0.28962001,690.56,689.62,1.08724256]
[1737869536405,0.28962001,690.56,689.53,1.08724256]
[1737869540305,0.28962001,690.56,689.49,1.08724256]
[1737869543508,0.28962001,690.56,689.4,1.08724256]
[1737869546402,0.28962001,690.56,689.37,0.29011996]
[1737869591631,1.08457397,690.46,689.37,0.29011996]
[1737869594834,1.08457397,690.46,689.38,0.26647079]
[1737869595031,1.08457397,690.46,689.37,0.29011996]
[1737869595437,1.08457397,690.44,689.37,1.37736252]
[1737869596039,1.08457397,690.44,689.38,0.2664707]
[1737869596633,1.08457397,690.44,689.37,1.37736252]
[1737869596833,1.08457397,690.44,689.38,0.26647334]
[1737869597740,1.08457397,690.44,689.37,1.37736252]
[1737869598443,1.08457397,690.4,689.38,1.08724256]
[1737869600944,0.28962001,690.56,689.37,0.29011996]
[1737869609945,1.08457397,690.55,689.37,0.29011996]
[1737869610249,1.37419818,690.55,689.37,0.29011996]
[1737869612952,1.08457397,690.54,689.37,0.29011996]
[1737869615953,1.08457397,690.48,689.37,0.29011996]
[1737869618955,1.08457397,690.52,689.37,0.29011996]
[1737869621657,1.08457397,690.51,689.37,0.29011996]
[1737869624065,1.08457397,690.49,689.37,0.29011996]
[1737869625958,1.08457397,690.5,689.37,0.29011996]
[1737869628761,1.08457397,690.42,689.39,1.08724256]
[1737869635375,1.08457397,690.49,689.37,0.29011996]
[1737869635676,0.28965357,690.48,689.37,0.29011996]
[1737869637875,1.08457397,690.45,689.37,0.29011996]
[1737869640571,1.08457397,690.44,689.37,0.29011996]
[1737869642877,0.28965357,690.48,689.37,0.29011996]
[1737869643073,0.28965357,690.48,689.25,1.08724256]
[1737869644477,0.28965357,690.48,689.12,1.08724256]
[1737869647678,0.28965357,690.48,689.09,1.08724256]
[1737869649681,0.28965357,690.48,688.46,1.30469107]
[1737869649682,0.28965357,690.48,689.04,1.08724256]
[1737869649879,0.28965357,690.48,689.05,0.55674838]
[1737869650082,0.28965357,690.48,689.06,0.29025048]
[1737869650276,0.28965357,690.48,689.06,0.55674244]
[1737869650479,0.28965357,690.48,689.07,0.26649196]
[1737869650683,0.28965357,690.48,689.08,0.29024206]
[1737869650883,0.28965357,690.48,689.09,0.26649196]
[1737869651281,0.28965357,690.48,689.1,0.29023363]
[1737869651477,0.28965357,690.48,689.11,0.26649196]
[1737869651679,0.28965357,690.48,689.12,0.29022521]
[1737869651877,0.28965357,690.48,689.13,0.26649196]
[1737869653084,0.28965357,690.48,689.14,0.266488]
[1737869654286,0.28965357,690.48,689.13,0.266488]
[1737869655086,0.28965357,690.48,689.14,0.26649284]
[1737869655286,0.28965357,690.48,689.15,0.26649284]
[1737869655487,0.28965357,690.48,689.16,0.26649284]
[1737869655685,0.28965357,690.48,689.17,0.26649284]
[1737869655989,0.28965357,690.48,689.18,0.26649284]
[1737869656189,0.28965357,690.48,689.13,0.26649284]
[1737869656690,0.28965357,690.48,689.16,1.08724256]
[1737869656890,0.28965357,690.48,689.17,0.26649284]
[1737869660497,0.28965357,690.48,689.21,1.08724256]
[1737869661198,0.28965357,690.48,689.22,0.2664894]
[1737869662199,0.28965357,690.48,689.23,0.26648921]
[1737869662500,0.28965357,690.48,689.22,0.26648921]
[1737869662699,0.28965357,690.48,689.21,1.08724256]
[1737869662898,0.28965357,690.48,689.22,0.26649271]
[1737869663100,0.28965357,690.48,689.22,1.35373527]
[1737869663300,0.28965357,690.48,689.23,0.26649271]
[1737869664102,0.28965357,690.48,689.22,1.08724256]
[1737869664302,0.28965357,690.48,689.23,0.26648933]
[1737869664501,0.28965357,690.48,689.22,1.08724256]
[1737869666401,0.28965357,690.48,689.23,1.08724256]
[1737869669504,0.28965357,690.48,689.16,1.08724256]
[1737869673612,0.28965357,690.48,689.12,0.29022521]
[1737869673613,0.28965357,690.48,689.17,1.08724256]
[1737869674805,0.28965357,690.48,689.18,0.26647492]
[1737869675004,0.28965357,690.48,689.19,0.2664751]
[1737869675209,0.28965357,690.48,689.18,0.2664751]
[1737869675510,0.28965357,690.48,689.19,0.2664751]
[1737869675713,0.28965357,690.48,689.17,1.08724256]
[1737869676010,0.28965357,690.48,689.18,0.2664734]
[1737869676710,0.28965357,690.48,689.17,1.08724256]
[1737869676913,0.28965357,690.48,689.18,0.26647322]
[1737869677507,0.28965357,690.48,689.25,1.08724256]
[1737869677705,0.28965357,690.48,689.26,0.26647322]
[1737869681111,0.28965357,690.48,689.3,1.08724256]
[1737869681407,0.28965357,690.48,689.31,0.26647322]
[1737869683317,0.28965357,690.48,689.3,1.08724256]
[1737869683512,0.28965357,690.48,689.31,0.26647688]
[1737869683909,1.08457397,690.47,689.31,0.26647688]
[1737869687315,1.08457397,690.47,689.3,1.08724256]
[1737869687915,1.08457397,690.47,689.34,1.08724256]
[1737869690818,0.28965357,690.48,689.27,1.08724256]
[1737869694219,0.28965357,690.48,689.26,1.08724256]
[1737869696120,0.28965357,690.48,689.27,0.26646825]
[1737869697517,0.28965357,690.48,689.28,0.26646822]
[1737869697718,0.28965357,690.48,689.29,0.26646822]
[1737869697917,0.28965357,690.48,689.27,0.26646822]
[1737869698117,0.28965357,690.48,689.28,1.35371078]
[1737869698317,0.28965357,690.48,689.29,0.26646822]
[1737869700629,1.08457397,690.39,689.4,1.08724256]
[1737869704121,1.08457397,690.4,689.4,1.08724256]
[1737869706227,1.08457397,690.41,689.41,1.08724256]
[1737869709831,1.08457397,690.43,689.41,1.08724256]
[1737869713626,1.30148876,690.68,689.28,1.08724256]
[1737869713831,1.08457397,691.31,689.28,1.08724256]
[1737869714330,0.28934766,691.21,689.29,0.29015363]
[1737869716831,0.28934766,691.21,689.3,0.26636773]
[1737869717027,0.28934766,691.21,689.31,0.29014521]
[1737869717332,0.28934766,691.21,689.32,0.26636773]
[1737869717532,0.28934766,691.21,689.33,0.29013679]
[1737869717730,0.28934766,691.21,689.34,0.26636773]
[1737869717924,0.28934766,691.21,689.35,0.29012838]
[1737869718129,0.28934766,691.21,689.36,0.26636773]
[1737869718331,0.28934766,691.21,689.37,0.29011996]
[1737869721031,0.28934766,691.21,689.38,0.26635947]
[1737869721935,0.28934766,691.21,689.39,0.29011154]
[1737869722234,0.28934766,691.21,689.4,0.26635947]
[1737869722435,0.28934766,691.21,689.41,0.29010313]
[1737869722637,0.28934766,691.21,689.42,0.26635947]
[1737869722836,1.08457397,691.12,689.43,0.29009471]
[1737869723136,0.28939372,691.1,689.44,0.26635947]
[1737869730241,1.08457397,691.09,689.44,0.26635947]
[1737869730438,0.28940628,691.07,689.44,0.26635947]
[1737869737340,0.28940628,691.07,689.43,0.29009471]
[1737869737544,0.28940628,691.07,689.44,0.26634453]
[1737869742749,0.28940628,691.07,689.45,0.26634396]
[1737869742945,0.28940628,691.07,689.44,0.26634396]
[1737869743645,0.28940628,691.07,689.45,0.26634847]
[1737869743846,0.28940628,691.07,689.46,0.26634847]
[1737869744047,1.08457397,690.93,689.53,1.08724256]
[1737869744362,0.28946911,690.92,689.54,0.26634847]
[1737869747153,1.08457397,690.76,689.69,1.08724256]
[1737869754361,1.08457397,690.87,689.58,1.08724256]
[1737869754558,0.28949425,690.86,689.58,1.08724256]
[1737869757252,0.28949425,690.86,689.53,1.08724256]
[1737869761162,0.28949425,690.86,689.54,1.08724256]
[1737869764969,0.28949425,690.86,689.55,1.08724256]
[1737869768072,0.28949425,690.86,689.6,1.08724256]
[1737869771569,0.28949425,690.86,689.59,1.08724256]
[1737869777879,0.28949425,690.86,689.43,0.29009471]
[1737869777880,1.08457397,690.7,689.55,1.08724256]
[1737869781386,1.08457397,690.74,689.5,1.08724256]
[1737869781583,1.37411851,690.74,689.5,1.08724256]
[1737869783782,0.28954873,690.73,689.5,1.08724256]
[1737869784183,0.28954873,690.73,689.43,0.29009471]
[1737869792300,0.28954873,690.73,689.44,0.26641338]
[1737869795298,0.28954873,690.73,689.45,0.26642125]
[1737869795598,0.28954873,690.73,689.46,0.26642125]
[1737869795800,0.28954873,690.73,689.44,0.26642125]
[1737869795993,0.28954873,690.73,689.43,0.29009471]
[1737869796198,1.3741227,690.73,689.44,0.26642013]
[1737869797998,1.3741227,690.73,689.43,0.29009471]
[1737869798199,1.3741227,690.73,689.44,0.26642009]
[1737869806509,1.3741227,690.73,689.43,0.29009471]
[1737869807105,1.08457397,690.65,689.44,1.08724256]
[1737869807501,1.37415624,690.65,689.45,0.26641662]
[1737869810410,1.08457397,690.6,689.46,1.08724256]
[1737869810605,1.08457397,690.6,689.47,0.26641662]
[1737869811007,1.08457397,690.6,689.48,0.26641072]
[1737869811210,1.08457397,690.6,689.46,1.08724256]
[1737869811211,1.08457397,690.6,689.47,0.26641072]
[1737869811505,1.08457397,690.6,689.48,0.26641072]
[1737869811710,1.08457397,690.6,689.47,0.26641072]
[1737869812206,1.08457397,690.6,689.46,1.08724256]
[1737869812510,1.08457397,690.6,689.47,0.26641379]
[1737869812912,1.08457397,690.6,689.46,1.08724256]
[1737869813115,1.08457397,690.56,689.53,1.08724256]
[1737869814813,1.08457397,690.56,689.54,0.26641385]
[1737869816015,1.08457397,690.54,689.54,0.26641385]
[1737869818718,1.08457397,690.54,689.53,1.08724256]
[1737869819915,1.08457397,690.53,689.56,1.08724256]
[1737869821715,1.08457397,690.53,689.55,1.08724256]
[1737869824326,0.28958227,690.65,689.54,1.08724256]
[1737869824327,1.08457397,690.55,689.54,1.08724256]
[1737869826629,1.08457397,690.55,689.55,1.08724256]
[1737869829729,1.08457397,690.54,689.53,1.08724256]
[1737869832838,1.08457397,690.54,689.54,0.26641584]
[1737869834031,1.08457397,690.54,689.53,1.08724256]
[1737869834230,1.08457397,690.54,689.54,0.2664117]
[1737869834632,1.08457397,690.53,689.55,1.08724256]
[1737869838636,1.08457397,690.51,689.58,1.08724256]
[1737869842134,1.08457397,690.51,689.56,1.08724256]
[1737869845844,0.28958227,690.65,689.43,0.29009471]
[1737869845845,1.08457397,690.61,689.51,1.08724256]
[1737869849845,1.08457397,690.61,689.52,1.08724256]
[1737869851046,1.08457397,690.61,689.53,0.26638292]
[1737869851247,1.08457397,690.61,689.52,1.08724256]
[1737869851645,1.08457397,690.61,689.53,0.26638257]
[1737869854046,0.28958227,690.65,689.58,1.08724256]
[1737869857644,0.28958227,690.65,689.56,1.08724256]
[1737869857848,0.28958227,690.65,689.57,0.26638418]
[1737869861048,0.28958227,690.65,689.56,0.26638418]
[1737869861349,0.28958227,690.65,689.55,1.08724256]
[1737869862748,0.28958227,690.65,689.56,1.08724256]
[1737869867055,0.28958227,690.65,689.43,0.29009471]
[1737869873860,0.28958227,690.65,689.44,0.26636757]
[1737869877563,0.28958227,690.65,689.54,1.08724256]
[1737869877764,0.28958227,690.65,689.55,0.26637163]
[1737869880664,0.28958227,690.65,689.56,1.08724256]
[1737869880968,0.28958227,690.65,689.57,0.26637163]
[1737869881459,0.28958227,690.65,689.58,0.26637409]
[1737869881663,0.28958227,690.65,689.57,0.26637409]
[1737869881863,0.28958227,690.65,689.58,0.26637409]
[1737869882060,0.28958227,690.65,689.59,0.26637409]
[1737869882260,0.28958227,690.65,689.57,0.26637409]
[1737869882466,0.28958227,690.65,689.56,1.08724256]
[1737869882667,0.28958227,690.65,689.57,0.26638022]
[1737869883061,0.28958227,690.65,689.58,0.26638041]
[1737869883263,0.28958227,690.65,689.57,1.35362297]
[1737869883466,0.28958227,690.65,689.58,0.26638041]
[1737869884762,0.28958227,690.65,689.57,1.08724256]
[1737869884964,0.28958227,690.65,689.58,0.26637818]
[1737869886465,0.28958227,690.65,689.6,1.08724256]
[1737869888070,0.28958227,690.65,689.61,0.26638702]
[1737869888670,0.28958227,690.65,689.6,1.08724256]
[1737869889570,0.28958227,690.65,689.43,0.29009471]
[1737869889571,1.08457397,690.6,689.61,1.08724256]
[1737869893875,1.08457397,690.64,689.58,1.08724256]
[1737869896381,0.28958227,690.65,689.57,1.08724256]
[1737869899485,0.28958227,690.65,689.53,1.08724256]
[1737869899684,0.28958227,690.65,689.54,0.26639362]
[1737869902477,0.28958227,690.65,689.53,1.08724256]
[1737869902682,0.28958227,690.65,689.54,0.2663952]
[1737869903384,1.37415624,690.65,689.55,1.08724256]
[1737869903584,1.37415624,690.65,689.56,0.2663952]
[1737869905383,1.08457397,690.6,689.57,1.08724256]
[1737869907986,1.08457397,690.63,689.55,1.08724256]
[1737869908186,1.08457397,690.63,689.56,0.26639694]
[1737869911090,1.08457397,690.62,689.56,0.26639694]
[1737869911388,1.08457397,690.62,689.55,1.08724256]
[1737869911688,1.08457397,690.62,689.56,0.2663953]
[1737869912488,1.08457397,690.62,689.55,1.08724256]
[1737869913587,1.08457397,690.63,689.56,1.08724256]
[1737869917301,0.28958227,690.65,689.5,1.08724256]
[1737869919800,0.28958227,690.65,689.51,1.08724256]
[1737869924299,0.28958227,690.65,689.52,1.08724256]
[1737869927800,0.28958227,690.65,689.55,1.08724256]
[1737869931203,0.28958227,690.65,689.43,0.29009471]
[1737869931204,1.08457397,690.64,689.57,1.08724256]
[1737869934301,0.28958227,690.65,689.46,1.08724256]
[1737869937405,0.28958227,690.65,689.47,1.08724256]
[1737869939204,0.28958227,690.65,689.43,0.29009471]
[1737869945916,0.28958227,690.65,689.45,1.08724256]
[1737869949610,0.28958227,690.65,689.46,0.26638813]
[1737869951217,0.28958227,690.65,689.52,1.08724256]
[1737869953619,0.28958227,690.65,689.43,0.29009471]
[1737869953620,0.28958227,690.65,689.56,1.08724256]
[1737869957516,0.28958227,690.65,689.43,0.29009471]
[1737869957517,0.28958227,690.65,689.6,1.08724256]
[1737869960721,0.28958227,690.65,689.43,0.29009471]
[1737869983042,0.28958227,690.65,689.46,1.08724256]
[1737869986141,0.28958227,690.65,689.47,0.26638468]
[1737869986635,0.28958227,690.65,689.46,1.08724256]
[1737869988245,0.28958227,690.65,689.43,0.29009471]
[1737869988246,0.28958227,690.65,689.53,1.08724256]
[1737869991142,0.28958227,690.65,689.43,0.29009471]
[1737869991143,0.28958227,690.65,689.58,1.08724256]
[1737869994349,0.28958227,690.65,689.59,1.08724256]
[1737870000046,0.28958227,690.65,689.6,0.26638224]
[1737870000849,1.08457397,690.64,689.62,1.08724256]
[1737870004154,1.08457397,690.61,689.65,1.08724256]
[1737870006751,0.28958227,690.65,689.43,0.29009471]
[1737870018166,0.28958227,690.65,689.44,0.26633664]
[1737870018361,1.08457397,691.31,689.45,0.2900863]
[1737870018565,0.28931418,691.29,689.46,0.26633664]
[1737870019164,0.28931418,691.29,689.45,0.2900863]
[1737870019367,0.28931418,691.29,689.46,0.2663061]
[1737870019667,0.28931418,691.29,689.47,0.29007788]
[1737870019859,0.28931418,691.29,689.48,0.2663061]
[1737870020063,0.28931418,691.29,689.49,0.29006947]
[1737870020265,0.28931418,691.29,689.5,0.2663061]
[1737870020466,0.28931418,691.29,689.51,0.29006105]
[1737870020665,0.28931418,691.29,689.52,0.2663061]
[1737870020870,0.28931418,691.29,689.53,0.29005264]
[1737870021063,0.28931418,691.29,689.54,0.2663061]
[1737870021266,0.28931418,691.29,689.55,0.29004423]
[1737870021471,1.08457397,691.24,689.55,0.29004423]
[1737870021672,0.28934347,691.22,689.55,0.29004423]
[1737870024167,1.37391744,691.22,689.55,0.29004423]
[1737870026074,1.37391744,691.22,689.56,0.26631029]
[1737870026277,1.37391744,691.22,689.57,0.29003581]
[1737870026577,1.37391744,691.22,689.58,0.2663079]
[1737870026874,1.37391744,691.22,689.59,0.2900274]
[1737870027181,0.28934347,691.22,689.59,0.2900274]
[1737870028077,0.28934347,691.22,689.6,0.26630827]
[1737870028377,0.28934347,691.22,689.61,0.29001899]
[1737870028577,0.28934347,691.22,689.62,0.26630827]
[1737870028775,0.28934347,691.22,689.62,0.55632306]
[1737870028974,0.28934347,691.22,689.63,0.26630827]
[1737870030176,0.28934347,691.22,689.64,0.26630105]
[1737870030379,0.28934347,691.22,689.62,0.29001479]
[1737870030380,1.08457397,691.07,689.63,1.35354361]
[1737870030578,0.28941047,691.06,689.64,0.26630105]
[1737870033175,0.28941047,691.06,689.63,0.26630105]
[1737870033380,0.28941047,691.06,689.64,0.26630105]
[1737870033881,0.28941047,691.06,689.65,0.26630105]
[1737870034077,0.28941047,691.06,689.66,0.26630105]
[1737870034278,0.28941047,691.06,689.67,0.26630105]
[1737870034478,0.28941047,691.06,689.63,0.26630105]
[1737870034681,0.28941047,691.06,689.64,0.26630105]
[1737870034981,0.28941047,691.06,689.65,0.26630988]
[1737870035181,0.28941047,691.06,689.66,0.26630988]
[1737870035383,1.08457397,691.0,689.67,0.26630988]
[1737870035687,0.28943978,690.99,689.68,0.26630511]
[1737870035985,0.28943978,690.99,689.69,0.26630511]
[1737870036177,0.28943978,690.99,689.66,0.26630511]
[1737870036485,0.28943978,690.99,689.67,0.26630511]
[1737870036682,0.28943978,690.99,689.68,0.26630511]
[1737870036883,0.28943978,690.99,689.66,0.26630511]
[1737870037082,0.28943978,690.99,689.67,0.26630511]
[1737870037279,0.28943978,690.99,689.68,0.26630511]
[1737870037483,0.28943978,690.99,689.69,0.26630511]
[1737870037683,0.28943978,690.99,689.66,0.26630511]
[1737870037884,0.28943978,690.99,689.67,0.26630511]
[1737870040985,0.28943978,690.99,689.66,1.08724256]
[1737870040986,0.28943978,690.99,689.68,0.26630311]
[1737870041180,0.28943978,690.99,689.69,0.26630311]
[1737870041380,0.28943978,690.99,689.66,1.08724256]
[1737870041886,0.28943978,690.99,689.67,0.2663028]
[1737870043182,0.28943978,690.99,689.69,1.08724256]
[1737870043386,0.28943978,690.99,689.7,0.26630554]
[1737870046091,1.37401375,690.99,689.7,0.26630554]
[1737870048495,1.08457397,690.92,689.72,1.08724256]
[1737870048793,1.08457397,690.92,689.73,0.26630554]
[1737870050591,1.08457397,690.92,689.75,1.08724256]
[1737870050789,1.08457397,690.92,689.76,0.26630554]
[1737870051195,1.08457397,690.92,689.75,1.08724256]
[1737870051397,1.08457397,690.92,689.76,0.26630827]
[1737870053192,1.08457397,690.92,689.75,1.08724256]
[1737870053794,1.08457397,690.92,689.62,0.29001479]
[1737870053795,1.08457397,690.88,689.79,1.08724256]
[1737870056894,1.08457397,690.89,689.79,1.08724256]
[1737870060497,1.08457397,690.89,689.62,0.29001479]
[1737870060498,1.08457397,690.93,689.74,1.08724256]
[1737870063598,1.08457397,690.92,689.75,1.08724256]
[1737870066103,0.28943978,690.99,689.62,0.29001479]
[1737870073912,0.28943978,690.99,689.63,0.26634479]
[1737870074513,0.28943978,690.99,689.62,0.29001479]
[1737870074910,0.28943978,690.99,689.63,0.26635188]
[1737870075613,0.28943978,690.99,689.62,0.29001479]
[1737870076713,1.08457397,690.83,689.62,0.29001479]
[1737870077510,1.08457397,690.83,689.63,0.26635665]
[1737870080118,1.08457397,690.77,689.63,1.35359921]
[1737870080416,1.08457397,690.77,689.64,0.26635665]
[1737870081015,1.08457397,690.77,689.63,1.08724256]
[1737870081217,1.08457397,690.77,689.64,0.26635323]
[1737870082111,1.08457397,690.77,689.63,1.08724256]
[1737870084216,1.08457397,690.8,689.62,0.29001479]
[1737870084517,1.08457397,690.8,689.63,0.26634935]
[1737870084816,1.08457397,690.8,689.64,0.26634663]
[1737870085012,1.08457397,690.8,689.62,0.29001479]
[1737870085212,1.08457397,690.8,689.63,0.26634735]
[1737870085516,1.08457397,690.8,689.62,0.29001479]
[1737870085716,1.08457397,690.8,689.63,0.26635137]
[1737870087215,1.08457397,690.8,689.62,0.29001479]
[1737870089312,1.08457397,690.89,689.62,0.29001479]
[1737870089517,0.28948587,690.88,689.62,0.29001479]
[1737870092221,0.28948587,690.88,689.63,0.2663518]
[1737870094915,1.08457397,690.82,689.63,0.2663518]
[1737870098119,1.08457397,690.81,689.63,0.2663518]
[1737870101523,1.08457397,690.79,689.63,1.35359436]
[1737870101724,1.08457397,690.79,689.64,0.2663518]
[1737870104325,1.08457397,690.82,689.64,1.35359436]
[1737870104524,1.08457397,690.82,689.65,0.2663518]
[1737870106626,1.08457397,690.82,689.64,1.08724256]
[1737870106924,1.08457397,690.82,689.65,0.266347]
[1737870107131,1.08457397,690.78,689.68,1.08724256]
[1737870110630,1.08457397,690.78,689.62,0.29001479]
[1737870110631,1.08457397,690.76,689.69,1.08724256]
[1737870113633,0.28948587,690.88,689.69,1.08724256]
[1737870113634,1.08457397,690.81,689.69,1.08724256]
[1737870116532,1.08457397,690.77,689.68,1.08724256]
[1737870119337,1.08457397,690.75,689.68,1.08724256]
[1737870121338,1.08457397,690.75,689.69,0.26635759]
[1737870121735,1.08457397,690.75,689.68,1.08724256]
[1737870122041,1.08457397,690.75,689.69,0.26635767]
[1737870122541,1.08457397,690.75,689.68,1.08724256]
[1737870123142,1.08457397,690.67,689.71,1.08724256]
[1737870126243,1.08457397,690.73,689.68,1.08724256]
[1737870129043,1.08457397,690.75,689.66,1.08724256]
[1737870129236,1.37411432,690.75,689.66,1.08724256]
[1737870129639,0.28954454,690.74,689.66,1.08724256]
[1737870131841,0.28954454,690.74,689.47,1.08724256]
[1737870133743,0.28954454,690.74,689.48,0.26640715]
[1737870134346,1.08457397,690.73,689.48,0.26640715]
[1737870134547,1.08457397,690.73,689.49,0.26640715]
[1737870134848,1.08457397,690.73,689.5,0.26640715]
[1737870135049,1.08457397,690.73,689.42,0.26640715]
[1737870136547,1.08457397,690.73,689.41,1.08724256]
[1737870138054,0.28954454,690.74,689.43,1.08724256]
[1737870139855,0.28954454,690.74,689.44,0.26639521]
[1737870141155,0.28954454,690.74,689.33,0.26639521]
[1737870141351,0.28954454,690.74,689.34,0.5565278]
[1737870141556,0.28954454,690.74,689.35,0.55652359]
[1737870141756,0.28954454,690.74,689.36,0.26639521]
[1737870150666,1.08457397,690.72,689.39,1.08724256]
[1737870150867,0.28955712,690.71,689.4,0.26639521]
[1737870153763,0.28955712,690.71,689.41,0.26641378]
[1737870156370,1.08457397,690.69,689.41,1.35365634]
[1737870156568,1.08457397,690.69,689.42,0.26641378]
[1737870158461,0.28956969,690.68,689.42,0.26641378]
[1737870158663,1.37414366,690.68,689.42,1.35365634]
[1737870158862,1.37414366,690.68,689.43,0.26641378]
[1737870159268,1.37414366,690.68,689.42,1.08724256]
[1737870159569,1.37414366,690.68,689.43,0.26641541]
[1737870160271,1.37414366,690.68,689.44,0.26640575]
[1737870160466,1.37414366,690.68,689.45,0.26640575]
[1737870160668,1.37414366,690.68,689.43,0.26640575]
[1737870160869,1.37414366,690.68,689.44,0.26640575]
[1737870161071,1.37414366,690.68,689.45,0.26640575]
[1737870161266,1.37414366,690.68,689.43,0.26640575]
[1737870161474,1.37414366,690.68,689.44,0.26640575]
[1737870161675,1.08457397,690.65,689.45,1.08724256]
[1737870161971,1.08457397,690.65,689.46,0.26640575]
[1737870164574,1.08457397,690.65,689.49,1.08724256]
[1737870167375,1.08457397,690.64,689.5,1.08724256]
[1737870169775,1.08457397,690.66,689.49,1.08724256]
[1737870170075,1.08457397,690.66,689.5,0.26641107]
[1737870172178,1.08457397,690.59,689.53,1.08724256]
[1737870174180,1.08457397,690.58,689.54,1.08724256]
[1737870176684,1.08457397,690.58,689.55,0.26641114]
[1737870177481,1.08457397,690.57,689.55,1.3536537]
[1737870177684,1.08457397,690.57,689.55,1.08724256]
[1737870180685,1.08457397,690.53,689.57,1.08724256]
[1737870184091,0.28956969,690.68,689.45,1.08724256]
[1737870188692,0.28956969,690.68,689.46,0.26641375]
[1737870188995,0.28956969,690.68,689.45,1.08724256]
[1737870191596,1.08457397,690.65,689.49,1.08724256]
[1737870200702,0.28956969,690.68,689.47,1.08724256]
[1737870202610,0.28956969,690.68,689.48,0.26636813]
[1737870202814,0.28956969,690.68,689.47,1.08724256]
[1737870203208,0.28956969,690.68,689.35,0.29012838]
[1737870203209,0.28956969,690.68,689.51,1.08724256]
[1737870207910,0.28956969,690.68,689.44,1.08724256]
[1737870208108,0.28956969,690.68,689.45,0.26636247]
[1737870208812,0.28956969,690.68,689.46,0.29008209]
[1737870209004,0.28956969,690.68,689.47,0.26636247]
[1737870209205,0.28956969,690.68,689.48,0.29007367]
[1737870209410,0.28956969,690.68,689.49,0.26636247]
[1737870212606,0.28956969,690.68,689.48,0.29007367]
[1737870212908,0.28956969,690.68,689.49,0.26635141]
[1737870214027,0.28956969,690.68,689.52,1.08724256]
[1737870214306,0.28956969,690.68,689.53,0.26635141]
[1737870218413,0.28956969,690.68,689.54,0.26635141]
[1737870218614,0.28956969,690.68,689.55,0.26635141]
[1737870218810,0.28956969,690.68,689.56,0.26635141]
[1737870219009,0.28956969,690.68,689.51,0.26635141]
[1737870219815,0.28956969,690.68,689.5,1.08724256]
[1737870220015,0.28956969,690.68,689.51,0.26634251]
[1737870220415,0.28956969,690.68,689.58,1.08724256]
[1737870220616,0.28956969,690.68,689.59,0.26634251]
[1737870223519,0.28956969,690.68,689.57,1.08724256]
[1737870223520,0.28956969,690.68,689.58,0.26634251]
[1737870225918,0.28956969,690.68,689.59,0.26634251]
[1737870226119,0.28956969,690.68,689.6,0.26634251]
[1737870226320,0.28956969,690.68,689.61,0.26634251]
[1737870226513,0.28956969,690.68,689.62,0.26634251]
[1737870226717,0.28956969,690.68,689.57,0.26634251]
[1737870227020,0.28956969,690.68,689.58,0.26634251]
[1737870227216,0.28956969,690.68,689.59,0.26634251]
[1737870227413,0.28956969,690.68,689.6,0.26634251]
[1737870227719,0.28956969,690.68,689.61,0.26634251]
[1737870227920,0.28956969,690.68,689.57,0.26634251]
[1737870228120,0.28956969,690.68,689.58,0.26634251]
[1737870228321,0.28956969,690.68,689.59,0.26634251]
[1737870228521,0.28956969,690.68,689.6,0.26634251]
[1737870228822,0.28956969,690.68,689.61,0.26634251]
[1737870229021,0.28956969,690.68,689.62,0.26634251]
[1737870229222,0.28956969,690.68,689.58,0.26634251]
[1737870229422,0.28956969,690.68,689.59,0.26634251]
[1737870229721,0.28956969,690.68,689.58,0.26634251]
[1737870229918,0.28956969,690.68,689.59,0.26634251]
[1737870230123,0.28956969,690.68,689.58,0.26634251]
[1737870231122,0.28956969,690.68,689.59,0.26634251]
[1737870231322,0.28956969,690.68,689.6,1.35358507]
[1737870231519,0.28956969,690.68,689.61,0.26634251]
[1737870233323,0.28956969,690.68,689.6,1.08724256]
[1737870233524,0.28956969,690.68,689.61,0.26633646]
[1737870233924,0.28956969,690.68,689.62,0.26634145]
[1737870234125,0.28956969,690.68,689.61,0.26634145]
[1737870234927,0.28956969,690.68,689.66,1.08724256]
[1737870235121,0.28956969,690.68,689.67,0.26634145]
[1737870235720,0.28956969,690.68,689.68,0.26633916]
[1737870235924,0.28956969,690.68,689.69,0.26633916]
[1737870236325,0.28956969,690.68,689.7,0.26633916]
[1737870236826,0.28956969,690.68,689.71,0.26633916]
[1737870237925,0.28956969,690.68,689.67,0.26633916]
[1737870238325,0.28956969,690.68,689.69,1.08724256]
[1737870238525,0.28956969,690.68,689.7,0.26633916]
[1737870240227,0.28956969,690.68,689.69,1.08724256]
[1737870240428,0.28956969,690.68,689.7,0.26633839]
[1737870241223,0.28956969,690.68,689.69,1.08724256]
[1737870242130,0.28956969,690.68,689.7,0.26631487]
[1737870242429,0.28956969,690.68,689.69,1.08724256]
[1737870242834,0.28956969,690.68,689.74,1.08724256]
[1737870246536,0.28956969,690.68,689.7,1.08724256]
[1737870249831,0.28956969,690.68,689.64,1.08724256]
[1737870251137,0.28956969,690.68,689.65,0.26631698]
[1737870252036,0.28956969,690.68,689.64,1.08724256]
[1737870253140,0.28956969,690.68,689.65,0.26631814]
[1737870254741,0.28956969,690.68,689.64,1.08724256]
[1737870254942,0.28956969,690.68,689.65,0.26631983]